Cogmind - Beta 11.1 @@@ ROGUE MODE // 2022.07.06 @ 20:24:38 Player: Artem Result: Destroyed by H-55 Commando with Gauss Rifle Performance ------------- Evolutions (3) 1500 Regions Visited (7) 1400 Robots Destroyed (28) 140 Value Destroyed (877) 877 Prototype IDs (5) 100 Alien Tech Used (0) 0 Bonus (500) 500 TOTAL SCORE: 4517 Bonus ------- Entered DSFs 500 Cogmind --------- Core Integrity 0/700 Matter 300/300 Energy 100/100 System Corruption 14% Temperature Cool (0) Movement Core (50) Location -7/DSF Parts ------- > --- POWER (2) -------- (None) > --- PROPULSION (4) --- (None) > --- UTILITY (3) ------ (None) > --- WEAPON (4) ------- (None) > --- INVENTORY (5) ---- (None) Peak State ------------ > --- POWER ------------ Deuterium Engine Improved Deuterium Engine > --- PROPULSION ------- Aluminum Leg Improved Carbon-fiber Leg Airjet > --- UTILITY ---------- Medium Storage Unit Core Analyzer Force Booster > --- WEAPON ----------- Pulse Rifle Pulse Rifle Gauss Rifle Powered Hammer > --- INVENTORY -------- Deuterium Engine Improved Cryofiber Web Pulse Rifle Mining Laser [Rating: 39] Favorites ----------- Power Ion Engine Engine Ion Engine Power Core Light Nuclear Core Propulsion Aluminum Leg Leg Aluminum Leg Hover Unit Airjet Flight Unit Improved Flight Unit Utility Medium Storage Unit Device Component Analysis Suite Storage Medium Storage Unit Processor Improved Signal Interpreter Hackware Authchip [Weapon] Weapon Spread Laser Energy Gun Spread Laser Energy Cannon Improved EM Pulse Cannon Ballistic Gun Assault Rifle Launcher Rocket Launcher Special Weapon Mining Laser Impact Weapon Powered Hammer Build | -11 -10 -10 -10 -9 -8 -7 -7 ------- Run | Scr Mat Min Exi Min Mat Fac DSF Slots Evolved 6 | . . . . . 4 2 . Power 1 | . . . . . 1 . . Propulsion 2 | . . . . . 1 1 . Utility 1 | . . . . . 1 . . Weapon 2 | . . . . . 1 1 . Parts Attached 72 | 6 3 7 3 8 21 6 18 Power 12 | 1 . . . 1 4 . 6 Engine 11 | 1 . . . . 4 . 6 Core 1 | . . . . 1 . . . Reactor . | . . . . . . . . Propulsion 16 | 2 . . . 3 5 2 4 Treads . | . . . . . . . . Leg 13 | 2 . . . 3 4 . 4 Wheel . | . . . . . . . . Hover 2 | . . . . . . 2 . Flight 1 | . . . . . 1 . . Utility 13 | 1 1 . 2 1 3 2 3 Device 5 | . . . . 1 1 2 1 Storage 5 | 1 1 . 2 . 1 . . Processor 2 | . . . . . 1 . 1 Hackware 1 | . . . . . . . 1 Protection . | . . . . . . . . Artifact . | . . . . . . . . Weapon 31 | 2 2 7 1 3 9 2 5 Energy Gun 13 | . 2 2 1 1 4 . 3 Energy Cannon 2 | . . . . 1 1 . . Ballistic Gun 5 | 2 . 2 . . . . 1 Ballistic Cannon . | . . . . . . . . Launcher 5 | . . 2 . . 2 1 . Special Weapon 3 | . . . . . 2 . 1 Impact Weapon 3 | . . 1 . 1 . 1 . Slashing Weapon . | . . . . . . . . Piercing Weapon . | . . . . . . . . Special Melee Weapon . | . . . . . . . . Unidentified Prototypes 2 | . . . . . 2 . . Corrupted Parts 1 | . . . . . . . 1 System Corruption 4 | . . . . . . . 4 Parts Lost 28 | . . . . 1 9 . 18 Power 5 | . . . . . 1 . 4 Propulsion 10 | . . . . 1 4 . 5 Utility 6 | . . . . . 1 . 5 Weapon 7 | . . . . . 3 . 4 Highest Loss Streak 15 | . . . . 1 4 . 15 To Critical Strikes . | . . . . . . . . Average Slot Usage (%) 89 | . 85 99 100 99 81 83 76 Engine 9 | . 14 14 14 3 7 15 11 Core 3 | . . . . 10 4 . . Leg 21 | . 28 28 28 27 18 9 8 Hover 1 | . . . . . . 5 7 Device 5 | . . . . 3 10 10 9 Storage 17 | . 14 28 28 24 11 7 7 Processor 2 | . . . . . 5 3 3 Energy Gun 18 | . 17 14 28 22 18 11 8 Energy Cannon 1 | . . . . 3 2 . . Launcher 3 | . . 10 . . 2 15 8 Impact Weapon 1 | . . 2 . 2 . 3 6 Naked Turns 1 | . . . . . . . 1 Heaviest Build 53 | 14 18 20 24 28 40 43 53 Greatest Support 43 | 20 20 20 20 33 43 20 28 Greatest Overweight (x) 8 | 4 . . 1 1 8 2 7 Average Overweight (x) . | . . . . . . 1 1 Largest Inventory Capacity 10 | 8 8 8 10 10 10 10 10 Average Capacity 9 | 7 8 8 8 10 10 10 9 Most Carried 9 | 1 7 8 5 9 9 5 8 Average Carried 4 | . 4 6 4 5 4 3 3 Final Capacity 10 | 8 8 8 10 10 10 10 5 Final Carried 8 | 1 7 4 4 8 4 5 . Class Distribution -------------------- 65% | Mutant 18% | Gunner 13% | Scavenger-Gunner Dominant Class ---------------- Mutant | -10/Materials Mutant | -10/Mines Mutant | -10/Exiles Mutant | -9/Mines Mutant | -8/Materials Scavenger-Gunner | -7/Factory Gunner | -7/DSF Resources | -11 -10 -10 -10 -9 -8 -7 -7 ----------- Run | Scr Mat Min Exi Min Mat Fac DSF Matter Collected 1020 | 204 . 55 150 241 145 . 225 Remotely . | . . . . . . . . Salvage Created 874 | . . 15 . 120 368 . 371 Parts 52 | . . 3 . 9 24 . 16 Haulers Intercepted . | . . . . . . . . Recyclers Shooed 1 | . . 1 . . . . . Parts Field Recycled . | . . . . . . . . Retrieved Matter . | . . . . . . . . Parts Self-Destructed . | . . . . . . . . Prevented . | . . . . . . . . Kills | -11 -10 -10 -10 -9 -8 -7 -7 ------- Run | Scr Mat Min Exi Min Mat Fac DSF Combat Hostiles Destroyed 26 | . . 2 . 6 10 . 8 Melee 6 | . . . . . 1 . 5 Guns 5 | . . . . 1 4 . . Cannons 5 | . . . . 4 1 . . AOE 5 | . . 2 . . 3 . . Classes Destroyed 8 | . . 1 . 2 4 . 1 Builder 1 | . . . . . 1 . . Watcher 1 | . . . . . 1 . . Swarmer 13 | . . 2 . 4 5 . 2 Grunt 6 | . . . . 1 2 . 3 Duelist 1 | . . . . . 1 . . Sentry 2 | . . . . . 2 . . Demolisher 1 | . . . . 1 . . . Specialist 3 | . . . . . . . 3 Best Kill Streak 4 | . . 2 . 3 4 . 3 Combat Bots Only 3 | . . 2 . 3 3 . 3 Max Kills in Single Turn 3 | . . 2 . 1 3 . 1 Gunslinging . | . . . . . . . . Exploded 2 | . . 2 . . 2 . . Melee 1 | . . . . . 1 . 1 Uniques/NPCs Destroyed . | . . . . . . . . Combat | -11 -10 -10 -10 -9 -8 -7 -7 -------- Run | Scr Mat Min Exi Min Mat Fac DSF Damage Taken 4060 | . . 59 . 300 1404 . 2297 Core 1195 | . . . . 32 452 . 711 Absorbed by Shields . | . . . . . . . . Core Remaining (%) 68 | 100 . . . 87 17 . . Volleys Fired 52 | . 3 3 . 12 30 . 4 Largest 3 | . 2 2 . 2 3 . 2 Hottest 191 | . 40 130 . 144 191 . 163 Shots Fired 96 | . 6 5 . 18 61 . 6 Gun 65 | . 6 3 . 8 44 . 4 Cannon 17 | . . . . 10 7 . . Launcher 4 | . . 2 . . 2 . . Special 10 | . . . . . 8 . 2 Kinetic 6 | . 6 . . . . . . Thermal 69 | . . 3 . 8 52 . 6 Explosive 4 | . . 2 . . 2 . . Electromagnetic 17 | . . . . 10 7 . . Robot Hit Streak 8 | . 2 . . 3 8 . 3 Robot Miss Streak 12 | . 3 4 . 12 6 . . Penetration Max . | . . . . . . . . Secondary Targets . | . . . . . . . . Shots Hit Robots 53 | . 2 . . 11 26 . 14 Core Hits 30 | . 1 2 . 6 17 . 4 Critical Kills . | . . . . . . . . Critical Parts Destroyed 4 | . . . . 1 . . 3 Critical Strikes 6 | . . . . 1 2 . 3 Burn 2 | . . . . . 2 . . Smash 4 | . . . . 1 . . 3 Melee Attacks 26 | . . 5 . 1 . . 20 Impact 26 | . . 5 . 1 . . 20 Slashing . | . . . . . . . . Piercing . | . . . . . . . . Sneak Attacks . | . . . . . . . . Combat Hostiles . | . . . . . . . . Follow-up Attacks . | . . . . . . . . Damage Inflicted 1883 | . 35 186 . 229 808 . 625 Guns 551 | . 35 . . 42 441 . 33 Cannons 282 | . . . . 158 124 . . Explosions 383 | . . 186 . . 197 . . Melee 615 | . . . . 27 . . 588 Ramming 52 | . . . . 2 46 . 4 Kinetic 35 | . 35 . . . . . . Thermal 516 | . . . . 42 441 . 33 Explosive 383 | . . 186 . . 197 . . Electromagnetic 282 | . . . . 158 124 . . Impact 615 | . . . . 27 . . 588 Slashing . | . . . . . . . . Piercing . | . . . . . . . . Highest Corruption 14 | . . . . . 11 . 14 Average Corruption 10 | . . . . . 10 . 7 Corruption Purged . | . . . . . . . . Corruption Blocked . | . . . . . . . . Effects 29 | . . . . . 25 . 4 Message Errors 8 | . . . . . 6 . 2 Matter Fused 6 | . . . . . 5 . 1 Heat Flow Errors 2 | . . . . . 2 . . Energy Discharges 3 | . . . . . 3 . . Parts Rejected 1 | . . . . . . . 1 Data Loss (minor) 3 | . . . . . 3 . . Misfires 1 | . . . . . 1 . . Alerts 1 | . . . . . 1 . . Weapon Failures 4 | . . . . . 4 . . Overload Shots . | . . . . . . . . Overflow Damage 277 | . . 30 . 29 10 . 208 Projectiles 2 | . . . . 2 . . . Explosions 40 | . . 30 . . 10 . . Melee 235 | . . . . 27 . . 208 Knockbacks 1 | . . . . . . . 1 Impact 1 | . . . . . . . 1 Kinetic . | . . . . . . . . Secondary . | . . . . . . . . Self-Inflicted Damage 151 | . . 3 . . 146 . 2 Shots 3 | . . 1 . . 2 . . Rammed 2 | . . . . . . . 2 Targets Rammed 10 | . . 1 . 1 6 . 2 Kicked 8 | . . 1 . 1 6 . . Crushed . | . . . . . . . . Highest Temperature 450 | . . 69 . 270 450 . . Average Temperature 116 | . . 31 . 102 126 . . Received Heat Transfer 522 | . . . . 18 306 . 198 Effects 3 | . . . . . 3 . . Shutdowns 1 | . . . . . 1 . . Energy Bleed 1 | . . . . . 1 . . Damage (minor) 1 | . . . . . 1 . . Siege Activations . | . . . . . . . . Robots Corrupted 2 | . . . . 1 1 . . Combat Hostiles 2 | . . . . 1 1 . . Parts Fried 5 | . . . . 2 1 . 2 Impact Corruptions 8 | . . . . 1 . . 7 Robots Melted . | . . . . . . . . Combat Hostiles . | . . . . . . . . Parts Melted 3 | . . . . . 3 . . Heat Transferred 1098 | . . . . 62 962 . 74 Parts Sabotaged . | . . . . . . . . Parts Stolen . | . . . . . . . . Parts Stripped . | . . . . . . . . Power Chain Reactions . | . . . . . . . . Missiles Intercepted . | . . . . . . . . Alert | -11 -10 -10 -10 -9 -8 -7 -7 ------- Run | Scr Mat Min Exi Min Mat Fac DSF Peak Influence 254 | . . 128 . 140 254 105 190 Initial 105 | . . . . . 54 105 9 Average 79 | . . 62 . 23 170 54 68 Maximum Alert Level 1 | . . . . . 1 . . Low Security (%) 88 | 100 100 100 . 100 61 100 100 Level 1 11 | . . . . . 38 . . Level 2 . | . . . . . . . . Level 3 . | . . . . . . . . Level 4 . | . . . . . . . . Level 5 . | . . . . . . . . High Security . | . . . . . . . . Max Security . | . . . . . . . . Squads Dispatched 10 | . 2 . . 1 1 2 4 Investigation 4 | . 2 . . 1 . 1 . Extermination . | . . . . . . . . Reinforcement 6 | . . . . . 1 1 4 Assault . | . . . . . . . . Garrison . | . . . . . . . . Intercept . | . . . . . . . . Searches Triggered . | . . . . . . . . Construction Impeded . | . . . . . . . . Haulers Reinforced . | . . . . . . . . Active Scanning Responses . | . . . . . . . . Cargo Convoy Interrupts . | . . . . . . . . Stealth | -11 -10 -10 -10 -9 -8 -7 -7 --------- Run | Scr Mat Min Exi Min Mat Fac DSF Distress Signals . | . . . . . . . . Communications Jammed . | . . . . . . . . Distress Signals . | . . . . . . . . Times Spotted 57 | . 2 4 . 9 18 1 23 Peak Tracking Total 9 | . 2 3 . 3 5 1 9 Tactical Retreats 7 | . . 1 . . 3 . 3 Traps | -11 -10 -10 -10 -9 -8 -7 -7 ------- Run | Scr Mat Min Exi Min Mat Fac DSF Traps Triggered 4 | . 2 . . . 1 . 1 Indirectly . | . . . . . . . . Trap Hack Attempts . | . . . . . . . . Triggered . | . . . . . . . . Disarmed . | . . . . . . . . Reprogrammed . | . . . . . . . . Reused . | . . . . . . . . Traps Extracted . | . . . . . . . . Installed . | . . . . . . . . Triggered . | . . . . . . . . Machines | -11 -10 -10 -10 -9 -8 -7 -7 ---------- Run | Scr Mat Min Exi Min Mat Fac DSF Machines Disabled 4 | . . . . 1 3 . . Max in Single Turn 1 | . . . . 1 1 . . Machines Sabotaged . | . . . . . . . . Garrisons Compromised . | . . . . . . . . Overloaded Fab Kills . | . . . . . . . . Hacking | -11 -10 -10 -10 -9 -8 -7 -7 --------- Run | Scr Mat Min Exi Min Mat Fac DSF Machines Accessed 8 | . 1 . . 1 2 4 . Terminals 5 | . 1 . . . 2 2 . Fabricators . | . . . . . . . . Repair Stations . | . . . . . . . . Recycling Units 1 | . . . . . . 1 . Scanalyzers . | . . . . . . . . Garrison Access 1 | . . . . . . 1 . Total Hacks 15 | . 2 . . 1 6 6 . Successful 8 | . 1 . . 1 3 3 . Failed 7 | . 1 . . . 3 3 . Catastrophic 2 | . . . . . . 2 . Database Lockouts . | . . . . . . . . Manual . | . . . . . . . . Terminals 11 | . 2 . . . 6 3 . Fabricators . | . . . . . . . . Repair Stations . | . . . . . . . . Recycling Units 1 | . . . . . . 1 . Scanalyzers . | . . . . . . . . Garrison Access 2 | . . . . . . 2 . Terminal Hacks 8 | . 1 . . 1 3 3 . Prototype ID Bank 1 | . . . . . 1 . . Open Door 1 | . . . . 1 . . . Open DSF 1 | . . . . . . 1 . Emergency Access Points 1 | . . . . . 1 . . Unreport Threat 1 | . . . . . . 1 . Locate Traps 1 | . . . . . . 1 . Hauler Manifests 1 | . 1 . . . . . . Zone Layout 1 | . . . . . 1 . . Fabricator Hacks . | . . . . . . . . Repair Station Hacks . | . . . . . . . . Recycling Unit Hacks . | . . . . . . . . Scanalyzer . | . . . . . . . . Garrison Access Hacks . | . . . . . . . . Unauthorized Hacks . | . . . . . . . . Terminals . | . . . . . . . . Fabricators . | . . . . . . . . Repair Stations . | . . . . . . . . Recycling Units . | . . . . . . . . Scanalyzers . | . . . . . . . . Garrison Access . | . . . . . . . . Data Cores Recovered . | . . . . . . . . Used . | . . . . . . . . Hacking Detections 5 | . 1 . . . 1 3 . Full Trace Events 1 | . . . . . . 1 . Feedback Events . | . . . . . . . . Feedback Blocked . | . . . . . . . . Robot Schematics Acquired . | . . . . . . . . Robots Built . | . . . . . . . . Authchips . | . . . . . . . . Time . | . . . . . . . . Total Robot Build Rating . | . . . . . . . . Part Schematics Acquired . | . . . . . . . . Parts Built . | . . . . . . . . Authchips . | . . . . . . . . Time . | . . . . . . . . Total Part Build Rating . | . . . . . . . . Parts Repaired . | . . . . . . . . Time . | . . . . . . . . Parts Recycled . | . . . . . . . . Recycled Matter . | . . . . . . . . Retrieved Matter . | . . . . . . . . Retrieved Components . | . . . . . . . . Parts Scanalyzed . | . . . . . . . . Part Schematics Acquired . | . . . . . . . . Parts Damaged . | . . . . . . . . Bothacking | -11 -10 -10 -10 -9 -8 -7 -7 ------------ Run | Scr Mat Min Exi Min Mat Fac DSF Used RIF Installer . | . . . . . . . . Robots Hacked . | . . . . . . . . Non-combat . | . . . . . . . . Combat . | . . . . . . . . Robot Hacks Applied . | . . . . . . . . Relay Couplers Released . | . . . . . . . . Fabnet Peak Effective % . | . . . . . . . . Robots Rewired . | . . . . . . . . Allies Hacked . | . . . . . . . . Hacks Repelled . | . . . . . . . . Allies | -11 -10 -10 -10 -9 -8 -7 -7 -------- Run | Scr Mat Min Exi Min Mat Fac DSF Total Allies 1 | . . . . 1 . . . Largest Group 1 | . . . . 1 . . . Highest-Rated Group 31 | . . . . 31 . . . Highest-Rated Ally 31 | . . . . 31 . . . Total Orders . | . . . . . . . . Ally Attacks 12 | . . . . 12 . . . Total Damage 191 | . . . . 191 . . . Kills 4 | . . . . 4 . . . Allies Corrupted . | . . . . . . . . Allies Melted . | . . . . . . . . Intel | -11 -10 -10 -10 -9 -8 -7 -7 ------- Run | Scr Mat Min Exi Min Mat Fac DSF Robot Analysis Total . | . . . . . . . . Derelict Logs Recovered 3 | . . 1 . 2 . . . Drone Launches . | . . . . . . . . Drone Recoveries . | . . . . . . . . Exploration | -11 -10 -10 -10 -9 -8 -7 -7 ------------- Run | Scr Mat Min Exi Min Mat Fac DSF Turns Passed 2538 | 59 150 215 443 521 631 162 357 Spaces Moved 1471 | 38 109 145 336 342 308 81 112 Core 18 | 7 . . . . 8 . 3 Treads . | . . . . . . . . Legs 1389 | 31 109 145 336 342 300 50 76 Wheels . | . . . . . . . . Hover 64 | . . . . . . 31 33 Flight . | . . . . . . . . Fastest Speed 50 | 50 120 120 120 120 120 176 50 Average Speed 143 | 130 120 120 130 128 155 187 219 Slowest Speed 470 | 250 120 120 190 190 450 260 470 Overloaded Moves . | . . . . . . . . Propulsion Burnouts . | . . . . . . . . Robots Hopped . | . . . . . . . . Cave-ins Triggered 2 | . . . . . 1 . 1 Exploration Rate (%) 38 | 4 19 40 76 81 25 3 56 Regions Visited 7 Branch Regions 3 Pre-discovered Areas . | . . . . . . . . Known Exits Taken 2 | . . . . . 1 1 . Unknown Exits Taken 5 | 1 1 1 1 1 . . . Scrap Searched 3 | . . 1 . 2 . . . Spaces Dug 9 | . . . . . 7 . 2 Terrain Destroyed 81 | . . 27 . . 52 . 2 Melee . | . . . . . . . . Projectile 9 | . . . . . 7 . 2 AOE 72 | . . 27 . . 45 . . Terrain Rammed 4 | . . . . . 4 . . Walls Destroyed . | . . . . . . . . Machines Disabled . | . . . . . . . . Actions | -11 -10 -10 -10 -9 -8 -7 -7 --------- Run | Scr Mat Min Exi Min Mat Fac DSF Total 1737 | 44 122 175 341 402 385 91 177 Wait 44 | . . 7 . 29 4 . 4 Move 1464 | 37 108 144 335 341 307 80 112 Hop . | . . . . . . . . Pick Up 29 | 1 5 1 . 6 7 2 7 Fast Attach 23 | 6 3 . . 1 5 2 6 Attach 31 | . . 7 1 2 11 2 8 Detach 8 | . 2 3 1 . 1 1 . Swap 18 | . . . 2 5 5 2 4 Drop 28 | . 1 4 2 4 5 2 10 Fire 52 | . 3 3 . 12 30 . 4 Melee 26 | . . 5 . 1 . . 20 Ram 6 | . . . . . 4 . 2 Kick 8 | . . 1 . 1 6 . . Crush . | . . . . . . . . Escape Stasis . | . . . . . . . . Rewire . | . . . . . . . . Trap . | . . . . . . . . Miscellaneous . | . . . . . . . . Route ------- -11/Scrapyard -10/Materials -10/Mines -10/Exiles -9/Mines -8/Materials -7/Factory -7/DSF History --------- Turn | Location | Event 22 | -11/Scrapyard | Discovered new exit (range 15) 60 | -11/Scrapyard | Entered Materials 194 | -10/Materials | Discovered new exit (range 11) 210 | -10/Materials | Entered Mines 301 | -10/Mines | Learned 2 Materials zone layouts 303 | -10/Mines | Build established: Mutant 384 | -10/Mines | Excavation squad dispatched 384 | -10/Mines | A large section of the Mines collapsed 419 | -10/Mines | Deemed a non-threat by the Exiles lab entrance 420 | -10/Mines | Discovered new exit (range 5) 425 | -10/Mines | Entered Exiles 425 | -10/Exiles | Found Exiles lab abandoned 851 | -10/Exiles | Discovered new exit (range 11) 868 | -10/Exiles | Entered Mines 869 | -9/Mines | Assembled infested the area 871 | -9/Mines | Received a Mining Laser from a helpful Derelict 1233 | -9/Mines | Met a Derelict shopkeep closing up shop 1279 | -9/Mines | Learned Materials stockpile data 1356 | -9/Mines | Discovered new exit (range 10) 1389 | -9/Mines | Entered Materials 1389 | -8/Materials | Evolved 4 slots: Power x1, Propulsion x1, Utility x1, Weapon x1 1449 | -8/Materials | Crushed by falling debris 1449 | -8/Materials | System corruption reached 10% 1701 | -8/Materials | Lost 3 parts (1p1n1u) 1787 | -8/Materials | Core integrity fell below 50% 1852 | -8/Materials | Lost 4 parts (2n2w) 1936 | -8/Materials | Core integrity fell below 20% 2005 | -8/Materials | Discovered new exit (range 5) 2011 | -8/Materials | Identified exit to Factory 2020 | -8/Materials | Entered Factory 2020 | -7/Factory | Evolved 2 slots: Propulsion x1, Weapon x1 2182 | -7/Factory | Identified exit to DSF 2182 | -7/Factory | Entered DSF 2240 | -7/DSF | Additional patrols routed to DSF 2326 | -7/DSF | Lost 3 parts (1p2n) 2503 | -7/DSF | Core integrity fell below 50% 2508 | -7/DSF | Crushed by falling debris 2508 | -7/DSF | System corruption reached 10% 2525 | -7/DSF | Core integrity fell below 20% 2539 | -7/DSF | Destroyed by H-55 Commando with Gauss Rifle Last Messages --------------- 02528_ Slug penetrates Wall. 02531_ Acquired 2 matter. 02531_ Slug penetrates Wall. 02531_ Mining Laser destroyed. 02533_ Slug penetrates Wall. 02533_ Deuterium Engine destroyed. 02534_ Penetrated by Slug. 02536_ System corrupted: Pulse Rifle rejected. 02536_ Slammed into X-57 Shotgunner. 02536_ Imp. Cryofiber Web broken. 02536_ Destabilizing: Short circuit. 02537_ Acquired 6 matter. 02538_ Med. Storage Unit destroyed. 02538_ C-30 ARC bursts open, deploying its payload. 02538_ S-27 Virus unfolds itself. 02538_ Broken Imp. Cryofiber Web destroyed. 02538_ Penetrated by Slug. 02538_ Authchip [Weapon] destroyed. 02539_ Slammed into S-27 Virus. 02539_ Penetrated by Slug. Map ----- +----------------------------------------------------+ | ????????????# ""##"????? | | ????????????# * """""????? | | ??????????????????###***#**## ""###????? | | ????????????????????????#* ### ###??????? | | ????????????????????????###### ##???????? | | ???????????????????????????#* *#???????? | | ???????????????????????????#** *#???????? | | ????????????###????????????### ##???????? | | ????????????#** ???????????#** *#???????? | | ????????????#** ??????????#** *#???????? | | ?????????????**% ??????????#** *#???????? | | ??????????????# ??########## ###??????? | | ????????#!???## #?#!!!# ## #??????? | | ???????!#!!!## ##!!!# ## ###????? | | ???????? " #????? | | ???????????? =%* ##?????? | | ??????????????? %=[ % % #??????? | | ??????????????? #"!!!"***##=*= #??????? | | ???????????????????##%!!#***?#[ ! #??????? | | ????????????????????##+%###"##! ###??????? | | ?????????????????????#=###?# !! #???????? | | ?????????????????????#h%;#?# [ #???????? | | ?????????????????????#%!%### #???????? | | ?????????????????????##xHx#### ##???????? | | ??????????????????????#%%!## #???????? | | ??????????????????????#[#@## #???????? | | ????????????????????#####s#### ##???????? | | ????????????????????# ?#s[### ###??????? | | ??????????????# ### #%x## ""###????? | | ??????????? ]] """""????? | | ??????????? ""##"????? | | ????????????#!!]]]!!#[[[#[[##" """#??????? | | ????????????#!!]]]??#########"""""#??????? | | ?????????????##?????????????##"####??????? | | ?????????????????????????????#"#?????????? | | ?????????????????????????????#""?????????? | | ?????????????????????????????###?????????? | | ?????????????????????????????????????????? | | ?????????????????????????????????????????? | | ?????????????????????????????????????????? | | ?????????????????????????????????????????? | | | | | | | | | | | | | | | | | | | +----------------------------------------------------+ Best States ------------- Heat Dissipation 34 Energy Generation 27 Energy Capacity 480 Matter Stores 450 Matter Capacity 450 Sight Range 16 Terrain Scan Density 10 Evasion (%) 59 Core Analysis 6 Force Boost 20 Authchip Count 1 Item Schematics ----------------- None Robot Schematics ------------------ None Fabricated ------------ Nothing Alien Tech Used ----------------- None Achievements -------------- Shopping List Challenges ------------ None Game ------ Seed FocalChainAxe Manual? 0 Play Time 00:30:05 Cumulative 11.1 hours Start 2022.07.06 @ 19:52:24 End 2022.07.06 @ 20:24:38 Sessions 3 Manual Loads 0 Difficulty Rogue Special Mode None Game No. 27 Rogue 27 Adventurer 0 Explorer 0 Win Type - Total 0 Types 0/0/0/0/0/0/0/0/0 Lore% 14 Gallery% 23 Achievement% 14 Wizard Run 0 Options --------- ASCII 0 Keyboard 0 Movement Numpad Keybinds 0 Fullscreen 2 Font 24/Proggy Map View 76x50 Tactical HUD 1 Map Filters NONE Filters NONE Steam 1 RUN: 8edf513f-f38a-492f-b39d-65e78c5f6f92